Cogmind - Beta 13 X1 @@@ ROGUE MODE // 2023.10.08 @ 03:56:27 Player: maxwell Result: Destroyed by G-67 Veteran with Field Laser Performance ------------- Evolutions (4) 2000 Regions Visited (15) 3000 Robots Destroyed (186) 930 Value Destroyed (6533) 6533 Prototype IDs (20) 400 Alien Tech Used (0) 0 Bonus (1027) 1027 TOTAL SCORE: 13890 Bonus ------- High Alert Combat Kills 11 Follower Combat Kills 1121 Met Data Miner 300 Friendly Fire -405 Cogmind --------- Core Integrity 0/850 Matter 197/300 Energy 480/480 System Corruption 22% Temperature Hot (200) Movement Treading (160) Location -6/Cetus Parts ------- > --- POWER (2) -------- Improved Deuterium Engine Improved Deuterium Engine > --- PROPULSION (5) --- Light Treads Light Treads Light Treads Light Treads Improved Treads > --- UTILITY (6) ------ Large Storage Unit Improved Sensor Array (fused) Improved Signal Interpreter Advanced Melee Analysis Suite Improved Light Armor Plating Hacking Suite > --- WEAPON (2) ------- Hypervelocity Gauss Rifle Ripper > --- INVENTORY (15) --- Experimental Sensor Array Improved Signal Interpreter Improved Melee Analysis Suite Proton Missile Launcher Missile Launcher Heavy Rocket Launcher Heavy Rocket Launcher Heavy Rocket Launcher Maul Great Maul Great Maul Ripper Heavy Pick Peak State ------------ > --- POWER ------------ Improved Deuterium Engine F-cell Engine > --- PROPULSION ------- Carbon-fiber Leg Flexi-carbon Leg Flexi-carbon Leg Flexi-carbon Leg Flexi-carbon Leg > --- UTILITY ---------- Large Storage Unit Experimental Sensor Array Improved Signal Interpreter Advanced Melee Analysis Suite Improved Medium Armor Plating Hacking Suite > --- WEAPON ----------- Ripper Heavy Pick > --- INVENTORY -------- Light Deuterium Engine Flexi-carbon Leg Flexi-carbon Leg Improved Sensor Array Improved Signal Interpreter Improved Medium Armor Plating Improved Medium Armor Plating Hypervelocity Gauss Rifle Proton Missile Launcher Missile Launcher Heavy Rocket Launcher Heavy Rocket Launcher Heavy Rocket Launcher Maul Ripper [Rating: 72] Favorites ----------- Power Cooled Ion Engine Engine Cooled Ion Engine Propulsion Light Treads Treads Light Treads Leg Flexi-carbon Leg Wheel Wheel Hover Unit Improved Hover Unit Flight Unit VTOL Module Utility Melee Analysis Suite Device Experimental Sensor Array Storage High-capacity Storage Unit Processor Melee Analysis Suite Hackware Hacking Suite Protection Reactive Plating Weapon Maul Energy Gun EM Pulse Gun Ballistic Gun Improved Assault Rifle Launcher Missile Launcher Impact Weapon Maul Slashing Weapon Ripper Piercing Weapon Heavy Pick Build | -11 -10 -10 -9 -9 -9 -8 -8 -7 -7 -7 -7 -6 -6 -6 -6 ------- Run | Jun Mat Min Mat Min Exi Min Mat Fac Low Low Dat Pro Fac Ext Cet Slots Evolved 8 | . . . 2 . . . 2 2 . . . . 2 . . Power 1 | . . . . . . . . . . . . . 1 . . Propulsion 3 | . . . 2 . . . . . . . . . 1 . . Utility 4 | . . . . . . . 2 2 . . . . . . . Weapon . | . . . . . . . . . . . . . . . . Parts Attached 207 | . 11 4 17 5 . 4 23 23 16 20 2 5 32 43 2 Power 18 | . 1 . 1 . . . 3 2 1 1 . . 5 4 . Engine 18 | . 1 . 1 . . . 3 2 1 1 . . 5 4 . Core . | . . . . . . . . . . . . . . . . Reactor . | . . . . . . . . . . . . . . . . Propulsion 67 | . 2 1 7 1 . 2 10 8 2 4 . . 9 21 . Treads 34 | . 2 1 7 1 . 2 10 3 . . . . . 8 . Leg 28 | . . . . . . . . 5 2 4 . . 6 11 . Wheel 2 | . . . . . . . . . . . . . 1 1 . Hover 2 | . . . . . . . . . . . . . 2 . . Flight 1 | . . . . . . . . . . . . . . 1 . Utility 80 | . 2 1 4 . . . 6 10 11 14 2 3 14 13 . Device 44 | . . . . . . . 3 5 7 12 2 3 8 4 . Storage 4 | . 1 . . . . . . 2 . . . . 1 . . Processor 11 | . . . 1 . . . 2 2 1 . . . 3 2 . Hackware 4 | . . . . . . . 1 . . 1 . . 1 1 . Protection 17 | . 1 1 3 . . . . 1 3 1 . . 1 6 . Artifact . | . . . . . . . . . . . . . . . . Weapon 42 | . 6 2 5 4 . 2 4 3 2 1 . 2 4 5 2 Energy Gun 5 | . 3 . 2 . . . . . . . . . . . . Energy Cannon . | . . . . . . . . . . . . . . . . Ballistic Gun 8 | . . . 3 2 . 1 . . . . . . . 1 1 Ballistic Cannon . | . . . . . . . . . . . . . . . . Launcher 10 | . 1 1 . 2 . 1 1 . 1 . . 1 . 1 1 Special Weapon . | . . . . . . . . . . . . . . . . Impact Weapon 14 | . 2 1 . . . . 3 3 1 . . . 3 1 . Slashing Weapon 4 | . . . . . . . . . . 1 . 1 . 2 . Piercing Weapon 1 | . . . . . . . . . . . . . 1 . . Special Melee Weapon . | . . . . . . . . . . . . . . . . Unidentified Prototypes 5 | . 1 . 2 . . . 1 . . . . . 1 . . Corrupted Parts 5 | . 2 . . . . . 2 . . . . . 1 . . System Corruption 17 | . 6 . . . . . 6 . . . . . 5 . . Parts Lost 72 | . 2 2 5 1 . 2 9 8 4 4 . . 18 17 . Power 7 | . . . 1 . . . 1 . . . . . 2 3 . Propulsion 39 | . . 1 4 1 . 2 7 4 2 1 . . 8 9 . Utility 20 | . . 1 . . . . 1 2 2 3 . . 7 4 . Weapon 6 | . 2 . . . . . . 2 . . . . 1 1 . Highest Loss Streak 9 | . 2 1 1 1 . 1 4 4 4 3 . . 9 6 . To Critical Strikes 2 | . . . . . . . 2 . . . . . . . . Average Slot Usage (%) 94 | . 83 99 99 99 77 88 99 95 99 94 100 100 68 93 100 Engine 9 | . 14 14 11 11 11 11 9 7 7 7 7 7 5 11 13 Treads 21 | . 23 28 43 43 44 40 35 18 18 4 . . . 7 33 Leg 9 | . 4 . . . . . . 8 11 21 30 30 16 20 . Device 6 | . . . . . . . 7 11 14 13 15 15 8 2 6 Storage 9 | . 14 14 11 11 11 11 9 7 7 7 7 7 5 6 6 Processor 12 | . . . 2 . . . 17 23 23 23 23 23 15 14 13 Protection 4 | . . 13 8 11 11 11 . 1 . . . . . 9 6 Energy Gun 1 | . 19 . . . . . . . . . . . . . . Ballistic Gun 2 | . . . 10 16 . 3 . . . . . . . . . Launcher 1 | . . 4 . 5 . 11 . . . . . . . . 4 Impact Weapon 10 | . 6 23 11 . . . 16 14 14 10 7 7 9 2 1 Slashing Weapon 1 | . . . . . . . . . . 3 7 6 . 5 6 Naked Turns . | . . . . . . . . . . . . . . . . Heaviest Build 68 | 14 53 56 64 67 67 68 68 61 53 42 38 41 52 65 54 Greatest Support 104 | 20 40 40 83 83 83 83 104 98 66 78 78 78 97 103 103 Greatest Overweight (x) 12 | . 1 1 1 . . 1 . 2 1 1 . . 12 5 . Average Overweight (x) . | . . 1 . . . . . . . . . . . . . Largest Inventory Capacity 20 | . 20 20 20 20 20 20 20 20 15 15 15 15 15 15 15 Average Capacity 17 | . 18 20 20 20 20 20 20 16 15 15 15 15 13 15 15 Most Carried 20 | . 11 14 20 19 20 20 20 20 15 15 14 14 14 15 13 Average Carried 14 | . 9 12 14 18 19 19 18 15 14 13 14 14 9 12 13 Final Capacity 20 | 8 20 20 20 20 20 20 20 15 15 15 15 15 15 15 15 Final Carried 20 | 6 11 14 18 19 20 18 20 15 13 14 14 14 6 13 13 Class Distribution -------------------- 75% | Mutant 21% | Scavenger-Mutant 3% | Commander-Mutant Dominant Class ---------------- Mutant | -10/Materials Mutant | -10/Mines Mutant | -9/Materials Mutant | -9/Mines Mutant | -9/Exiles Mutant | -8/Mines Mutant | -8/Materials Mutant | -7/Factory Mutant | -7/Lower Caves Mutant | -7/Lower Caves Scavenger-Mutant | -7/Data Miner Scavenger-Mutant | -6/Proximity Caves Mutant | -6/Factory Scavenger-Mutant | -6/Extension Scavenger-Mutant | -6/Cetus Resources | -11 -10 -10 -9 -9 -9 -8 -8 -7 -7 -7 -7 -6 -6 -6 -6 ----------- Run | Jun Mat Min Mat Min Exi Min Mat Fac Low Low Dat Pro Fac Ext Cet Matter Collected 3372 | 200 178 121 352 276 . 187 330 216 225 140 . 136 252 759 . Remotely . | . . . . . . . . . . . . . . . . Salvage Created 7144 | . 498 163 1375 472 . 157 1089 635 411 472 . 98 674 877 223 Parts 311 | . 31 5 66 26 . 10 33 13 13 29 . 6 19 48 12 Haulers Intercepted 6 | . 2 . 2 . . . 2 . . . . . . . . Recyclers Shooed 3 | . . . 2 . . . . . . . . . . 1 . Parts Field Recycled . | . . . . . . . . . . . . . . . . Retrieved Matter . | . . . . . . . . . . . . . . . . Parts Self-Destructed 39 | . . . . . . . . . 3 24 . 12 . . . Prevented 8 | . . . . . . . . . 7 1 . . . . . Kills | -11 -10 -10 -9 -9 -9 -8 -8 -7 -7 -7 -7 -6 -6 -6 -6 ------- Run | Jun Mat Min Mat Min Exi Min Mat Fac Low Low Dat Pro Fac Ext Cet Combat Hostiles Destroyed 149 | . 10 5 23 17 . 14 20 13 8 6 . 2 12 14 5 Melee 50 | . 1 3 9 . . . 7 5 2 6 . . 4 13 . Guns 22 | . 5 . 8 9 . . . . . . . . . . . AOE 38 | . 3 1 1 8 . 14 . . 3 . . 2 1 . 5 Classes Destroyed 18 | . 2 5 6 . . 1 1 1 . . . 1 1 . . Worker 6 | . . 1 3 1 . . . . . . . . 1 . . Builder 3 | . . 2 . . . . . . . . . . . 1 . Tunneler 3 | . . 2 . . . . 1 . . . . . . . . Hauler 6 | . 2 . 2 . . . 2 . . . . . . . . Recycler 4 | . . . 3 . . . . . . . . . 1 . . Minesweeper 1 | . . . . . . . . . . . . 1 . . . Mechanic 1 | . . . 1 . . . . . . . . . . . . Operator 5 | . . . 1 . . . . 3 . . . . . 1 . Watcher 13 | . . . 2 . . . 3 4 . . . . 1 2 1 Swarmer 31 | . . 1 . 4 . 8 3 4 1 . . 2 1 3 4 Grunt 65 | . 10 3 16 8 . 4 7 4 5 . . . 3 5 . Brawler 1 | . . . . . . . . . . . . . 1 . . Duelist 4 | . . . 1 1 . 1 . . . . . . 1 . . Sentry 24 | . . . 6 . . . 7 3 1 . . . 1 6 . Specialist 5 | . . . . . . . 2 . . 3 . . . . . Hunter 8 | . . . . . . 1 1 . 1 1 . . 4 . . Programmer 5 | . . . . . . . . 2 . 2 . . 1 . . Cetus Guard 1 | . . . . . . . . . . . . . . . 1 Assembled 5 | . . 1 . 4 . . . . . . . . . . . Best Kill Streak 7 | . 3 3 5 4 . 4 7 5 3 1 . 2 3 4 6 Combat Bots Only 6 | . 3 3 4 4 . 4 6 4 4 1 . 2 3 3 5 Max Kills in Single Turn 4 | . 1 1 3 3 . 4 1 1 1 1 . 1 1 1 3 Gunslinging . | . . . . . . . . . . . . . . . . Exploded 4 | . 1 1 1 3 . 4 . . 1 . . 1 1 . 2 Melee 1 | . 1 1 1 . . . 1 1 1 1 . . 1 1 . Uniques/NPCs Destroyed . | . . . . . . . . . . . . . . . . Combat | -11 -10 -10 -9 -9 -9 -8 -8 -7 -7 -7 -7 -6 -6 -6 -6 -------- Run | Jun Mat Min Mat Min Exi Min Mat Fac Low Low Dat Pro Fac Ext Cet Damage Taken 12553 | . 494 396 1327 371 . 473 1372 1785 538 487 . 99 1897 3051 263 Core 2018 | . 59 58 233 36 . 124 209 352 57 39 . . 297 513 41 Absorbed by Shields 214 | . . . . . . . . . . 24 . . 15 161 14 Redirected to Shielding 115 | . . 50 . . . . . . . 65 . . . . . Ignored by Resistances 149 | . . . 24 14 . 29 . 9 73 . . . . . . Core Remaining (%) 50 | 100 . 53 . . . 1 62 . . . . 36 . . . Volleys Fired 175 | . 36 1 39 24 . 17 . . 7 . . 3 . 35 13 Largest 2 | . 2 1 2 2 . 2 . . 1 . . 1 . 1 1 Hottest 80 | . 80 30 46 59 . 64 . . 39 . . 36 . 33 39 Shots Fired 264 | . 65 2 78 43 . 18 . . 7 . . 3 . 36 12 Gun 214 | . 59 . 78 36 . 2 . . . . . . . 36 3 Cannon . | . . . . . . . . . . . . . . . . Launcher 50 | . 6 2 . 7 . 16 . . 7 . . 3 . . 9 Special . | . . . . . . . . . . . . . . . . Kinetic 155 | . . . 78 36 . 2 . . . . . . . 36 3 Thermal . | . . . . . . . . . . . . . . . . Explosive 34 | . 6 2 . 7 . 16 . . . . . 3 . . . Electromagnetic 75 | . 59 . . . . . . . 7 . . . . . 9 Robot Hit Streak 15 | . 12 2 15 7 . 5 . . 2 . . . . 3 10 Robot Miss Streak 6 | . 3 . 2 2 . 3 . . 1 . . . . 6 1 Penetration Max 2 | . . . . . . . . . . . . . . 2 . Secondary Targets 4 | . . . 2 2 . . . . . . . . . . . Max Gunslinging Chain 1 | . . . 1 1 . . . . . . . . . . . Shots Hit Robots 508 | . 51 18 117 28 . 10 56 70 11 22 . 2 41 75 7 Core Hits 205 | . 22 8 34 26 . 20 8 5 12 7 . 5 8 32 18 Critical Kills 2 | . . . 1 . . . . . . . . . 1 . . Critical Parts Destroyed 48 | . . 2 8 . . . 11 10 3 1 . . 8 4 1 Critical Strikes 60 | . . 2 9 . . . 12 10 3 3 . . 9 11 1 Destroy 6 | . . . 1 . . . . . . . . . . 4 1 Smash 46 | . . 2 8 . . . 12 10 3 1 . . 9 1 . Sever 8 | . . . . . . . . . . 2 . . . 6 . Melee Attacks 485 | . 6 30 82 . . . 68 93 11 24 . 22 60 89 . Impact 379 | . 6 30 82 . . . 68 93 11 12 . 5 52 20 . Slashing 86 | . . . . . . . . . . 12 . 17 3 54 . Piercing 20 | . . . . . . . . . . . . . 5 15 . Sneak Attacks 29 | . . 4 8 . . . 5 4 . 2 . 1 2 3 . Combat Hostiles 3 | . . . . . . . . . . 2 . . . 1 . Follow-up Attacks 52 | . . 3 9 . . . 16 8 . 3 . . 6 7 . Damage Inflicted 19825 | . 1136 977 3310 893 . 1357 2266 2947 649 1128 . 373 1641 2378 770 Guns 2044 | . 559 . 940 350 . 23 . . . . . . . 159 13 Cannons . | . . . . . . . . . . . . . . . . Explosions 3903 | . 387 133 232 537 . 1312 . . 323 . . 222 . . 757 Melee 13830 | . 187 844 2121 . . . 2266 2947 326 1128 . 151 1641 2219 . Ramming 48 | . 3 . 17 6 . 22 . . . . . . . . . Kinetic 1485 | . . . 940 350 . 23 . . . . . . . 159 13 Thermal 365 | . 120 . . . . . . . . . . . . . 245 Explosive 2703 | . 267 133 232 537 . 1312 . . . . . 222 . . . Electromagnetic 1394 | . 559 . . . . . . . 323 . . . . . 512 Impact 10896 | . 187 844 2121 . . . 2266 2947 326 636 . . 1482 87 . Slashing 2449 | . . . . . . . . . . 492 . 151 116 1690 . Piercing 485 | . . . . . . . . . . . . . 43 442 . Highest Corruption 22 | . 6 6 . 4 4 4 6 6 . 2 2 . 22 22 22 Average Corruption 9 | . 5 6 . 4 4 4 5 5 . 1 1 . 19 22 22 Corruption Purged 9 | . . . . . . . . 6 . 1 2 . . . . Corruption Blocked . | . . . . . . . . . . . . . . . . Effects 221 | . 39 40 . 15 5 10 . 7 . 3 . . 25 71 6 Message Errors 56 | . 13 12 . 5 2 1 . 1 . 1 . . 7 14 . Matter Fused 61 | . 6 11 . 5 1 4 . 3 . . . . 7 22 2 Heat Flow Errors 26 | . 6 2 . 2 . . . 1 . 2 . . 3 8 2 Energy Discharges 33 | . 6 10 . . 1 3 . 1 . . . . 2 10 . Parts Rejected 3 | . . . . . . . . . . . . . 3 . . Parts Fused 1 | . . . . . . . . . . . . . . . 1 Data Loss (minor) 18 | . 4 2 . 2 1 . . . . . . . 2 7 . Data Loss (major) 10 | . 3 . . . . 1 . . . . . . . 6 . Misfires 3 | . . 1 . 1 . . . . . . . . . 1 . Alerts 5 | . 1 2 . . . . . 1 . . . . . 1 . Misdirections 3 | . . . . . . . . . . . . . 1 2 . Weapon Failures 2 | . . . . . . 1 . . . . . . . . 1 Overload Shots . | . . . . . . . . . . . . . . . . Overflow Damage 3335 | . 26 191 579 34 . 67 676 772 119 322 . . 494 55 . Projectiles 12 | . . 12 . . . . . . . . . . . . . Explosions 167 | . 5 . 61 34 . 67 . . . . . . . . . Melee 3156 | . 21 179 518 . . . 676 772 119 322 . . 494 55 . Knockbacks 42 | . . 9 4 . . . 6 15 2 1 . . 5 . . Impact 38 | . . 6 4 . . . 6 14 2 1 . . 5 . . Kinetic . | . . . . . . . . . . . . . . . . Secondary 4 | . . 3 . . . . . 1 . . . . . . . Self-Inflicted Damage 518 | . 85 14 23 102 . 271 . . 5 . . 18 . . . Shots 17 | . 3 1 1 3 . 7 . . 1 . . 1 . . . Rammed 6 | . . . 3 . . 3 . . . . . . . . . Targets Rammed 8 | . 1 . 3 1 . 3 . . . . . . . . . Kicked 1 | . 1 . . . . . . . . . . . . . . Crushed 1 | . . . . 1 . . . . . . . . . . . Highest Temperature 268 | . 268 210 9 172 . 27 7 178 5 254 . . 231 214 212 Average Temperature 73 | . 86 104 3 55 . 9 6 68 3 124 . . 92 67 92 Received Heat Transfer 3077 | . 228 186 675 81 . 63 297 348 159 . . . 222 773 45 Effects 3 | . 2 1 . . . . . . . . . . . . . Energy Bleed 1 | . . 1 . . . . . . . . . . . . . Interference 2 | . 2 . . . . . . . . . . . . . . Siege Activations . | . . . . . . . . . . . . . . . . Robots Corrupted 2 | . 1 . . . . . . . 1 . . . . . . Combat Hostiles 2 | . 1 . . . . . . . 1 . . . . . . Parts Fried 65 | . 4 7 3 . . . 14 16 4 1 . . 13 2 1 Impact Corruptions 131 | . 2 9 16 . . . 29 38 6 11 . . 19 1 . Robots Melted . | . . . . . . . . . . . . . . . . Combat Hostiles . | . . . . . . . . . . . . . . . . Parts Melted 3 | . . . 1 . . . . . . . . . . . 2 Heat Transferred 400 | . 150 . . . . . . . . . . . . . 250 Parts Sabotaged . | . . . . . . . . . . . . . . . . Parts Stolen . | . . . . . . . . . . . . . . . . Parts Stripped . | . . . . . . . . . . . . . . . . Power Chain Reactions 7 | . 3 . . . . . . . 1 . . . . . 3 Missiles Intercepted . | . . . . . . . . . . . . . . . . Alert | -11 -10 -10 -9 -9 -9 -8 -8 -7 -7 -7 -7 -6 -6 -6 -6 ------- Run | Jun Mat Min Mat Min Exi Min Mat Fac Low Low Dat Pro Fac Ext Cet Peak Influence 448 | . 289 107 310 213 . 266 448 235 . . . . 122 309 340 Initial 154 | . . 5 8 120 . . 101 154 . . . . . 1 137 Average 107 | . 81 27 154 136 . 167 181 96 . . . . 50 106 193 Maximum Alert Level 2 | . 1 . 1 1 . 1 2 1 . . . . . 1 1 Low Security (%) 81 | . 86 100 60 81 . 76 68 91 . . . . 100 72 75 Level 1 17 | . 13 . 39 18 . 23 24 8 . . . . . 27 24 Level 2 . | . . . . . . . 7 . . . . . . . . Level 3 . | . . . . . . . . . . . . . . . . Level 4 . | . . . . . . . . . . . . . . . . Level 5 . | . . . . . . . . . . . . . . . . High Security . | . . . . . . . . . . . . . . . . Max Security . | . . . . . . . . . . . . . . . . Squads Dispatched 19 | . 3 . 1 . . 1 3 6 . . . . 2 3 . Investigation 3 | . 2 . . . . . . . . . . . 1 . . Extermination 3 | . . . . . . . . 2 . . . . 1 . . Reinforcement 13 | . 1 . 1 . . 1 3 4 . . . . . 3 . Assault . | . . . . . . . . . . . . . . . . Garrison . | . . . . . . . . . . . . . . . . Intercept . | . . . . . . . . . . . . . . . . Searches Triggered . | . . . . . . . . . . . . . . . . Data Miner Redirects 1 | . . . . . . . . . . . . . 1 . . Construction Impeded 2 | . . . . . . 1 . . . . . . . 1 . Haulers Reinforced 1 | . . . . . . . . 1 . . . . . . . Active Scanning Responses . | . . . . . . . . . . . . . . . . Cargo Convoy Interrupts . | . . . . . . . . . . . . . . . . Stealth | -11 -10 -10 -9 -9 -9 -8 -8 -7 -7 -7 -7 -6 -6 -6 -6 --------- Run | Jun Mat Min Mat Min Exi Min Mat Fac Low Low Dat Pro Fac Ext Cet Distress Signals 7 | . . . 3 . . . 2 . . . . . . . 2 Communications Jammed . | . . . . . . . . . . . . . . . . Distress Signals . | . . . . . . . . . . . . . . . . Times Spotted 233 | . 23 10 27 16 . 15 32 29 11 6 . 5 15 35 9 Peak Tracking Total 7 | . 5 3 5 3 . 4 7 7 4 1 . 3 3 6 7 Tactical Retreats 10 | . . . . . . . 1 1 2 . . . 2 1 3 Traps | -11 -10 -10 -9 -9 -9 -8 -8 -7 -7 -7 -7 -6 -6 -6 -6 ------- Run | Jun Mat Min Mat Min Exi Min Mat Fac Low Low Dat Pro Fac Ext Cet Traps Triggered 9 | . 2 . 1 . . . . 2 . . . . 1 3 . Indirectly . | . . . . . . . . . . . . . . . . Trap Hack Attempts . | . . . . . . . . . . . . . . . . Triggered . | . . . . . . . . . . . . . . . . Disarmed . | . . . . . . . . . . . . . . . . Reprogrammed . | . . . . . . . . . . . . . . . . Reused . | . . . . . . . . . . . . . . . . Traps Extracted . | . . . . . . . . . . . . . . . . Installed . | . . . . . . . . . . . . . . . . Triggered 3 | . . . . . . . . 2 . . . . 1 . . Machines | -11 -10 -10 -9 -9 -9 -8 -8 -7 -7 -7 -7 -6 -6 -6 -6 ---------- Run | Jun Mat Min Mat Min Exi Min Mat Fac Low Low Dat Pro Fac Ext Cet Machines Disabled 5 | . . . 1 . . 1 1 . . 1 . . . 1 . Max in Single Turn 1 | . . . 1 . . 1 1 . . 1 . . . . . Machines Repaired . | . . . . . . . . . . . . . . . . Machines Sabotaged . | . . . . . . . . . . . . . . . . Overloaded Fab Kills . | . . . . . . . . . . . . . . . . Hacking | -11 -10 -10 -9 -9 -9 -8 -8 -7 -7 -7 -7 -6 -6 -6 -6 --------- Run | Jun Mat Min Mat Min Exi Min Mat Fac Low Low Dat Pro Fac Ext Cet Machines Accessed 21 | . 3 . 1 . 1 . 4 1 1 1 4 . 2 3 . Terminals 12 | . 3 . 1 . . . 2 1 1 . . . 1 3 . Fabricators 1 | . . . . . . . . . . . . . 1 . . Repair Stations . | . . . . . . . . . . . . . . . . Recycling Units . | . . . . . . . . . . . . . . . . Scanalyzers 1 | . . . . . . . 1 . . . . . . . . Garrison Access 1 | . . . . . . . 1 . . . . . . . . Total Hacks 72 | . 9 . 4 . 1 . 12 2 1 1 31 . 5 6 . Successful 52 | . 6 . 3 . 1 . 4 . 1 1 31 . 2 3 . Failed 20 | . 3 . 1 . . . 8 2 . . . . 3 3 . Catastrophic 2 | . 1 . . . . . 1 . . . . . . . . Database Lockouts . | . . . . . . . . . . . . . . . . Manual 20 | . 9 . 2 . . . 3 2 . . . . . 4 . Terminals 32 | . 9 . 4 . . . 7 2 1 . . . 3 6 . Fabricators 2 | . . . . . . . . . . . . . 2 . . Repair Stations . | . . . . . . . . . . . . . . . . Recycling Units . | . . . . . . . . . . . . . . . . Scanalyzers 4 | . . . . . . . 4 . . . . . . . . Garrison Access 1 | . . . . . . . 1 . . . . . . . . Terminal Hacks 42 | . 2 . 2 . 1 . 2 . 1 1 31 . . 2 . Record 13 | . . . . . 1 . . . 1 . 11 . . . . Part Schematic 13 | . . . 1 . . . . . . . 12 . . . . Robot Schematic 5 | . . . . . . . . . . . 5 . . . . Robot Analysis 1 | . 1 . . . . . . . . . . . . . . Prototype ID Bank 5 | . . . . . . . 2 . . . 3 . . . . Open Door 1 | . . . . . . . . . . 1 . . . . . Terminal Index 1 | . 1 . . . . . . . . . . . . . . Alert Level 2 | . . . 1 . . . . . . . . . . 1 . Unreport Threat 1 | . . . . . . . . . . . . . . 1 . Fabricator Hacks 2 | . . . . . . . . . . . . . 2 . . Network Status 1 | . . . . . . . . . . . . . 1 . . Build 1 | . . . . . . . . . . . . . 1 . . Repair Station Hacks . | . . . . . . . . . . . . . . . . Recycling Unit Hacks . | . . . . . . . . . . . . . . . . Scanalyzer 1 | . . . . . . . 1 . . . . . . . . Insert Component 1 | . . . . . . . 1 . . . . . . . . Garrison Access Hacks . | . . . . . . . . . . . . . . . . Unauthorized Hacks 7 | . 4 . 1 . . . 1 . . . . . . 1 . Terminals 7 | . 4 . 1 . . . 1 . . . . . . 1 . Botnet 5 | . 2 . 1 . . . 1 . . . . . . 1 . Operators 2 | . 2 . . . . . . . . . . . . . . Fabricators . | . . . . . . . . . . . . . . . . Repair Stations . | . . . . . . . . . . . . . . . . Recycling Units . | . . . . . . . . . . . . . . . . Scanalyzers . | . . . . . . . . . . . . . . . . Garrison Access . | . . . . . . . . . . . . . . . . Data Cores Recovered . | . . . . . . . . . . . . . . . . Used . | . . . . . . . . . . . . . . . . Hacking Detections 14 | . 3 . 1 . . . 4 1 . . . . 2 3 . Full Trace Events 2 | . . . . . . . 1 . . . . . 1 . . Feedback Events 1 | . . . . . . . 1 . . . . . . . . Hackware Fried 1 | . . . . . . . 1 . . . . . . . . Feedback Blocked . | . . . . . . . . . . . . . . . . Robot Schematics Acquired 5 | . . . . . . . . . . . 5 . . . . Robots Built . | . . . . . . . . . . . . . . . . Authchips . | . . . . . . . . . . . . . . . . Time . | . . . . . . . . . . . . . . . . Total Robot Build Rating . | . . . . . . . . . . . . . . . . Part Schematics Acquired 13 | . . . 1 . . . . . . . 12 . . . . Parts Built 1 | . . . . . . . . . . . . . 1 . . Authchips . | . . . . . . . . . . . . . . . . Time 95 | . . . . . . . . . . . . . 95 . . Total Part Build Rating 5 | . . . . . . . . . . . . . 5 . . Parts Repaired . | . . . . . . . . . . . . . . . . Time . | . . . . . . . . . . . . . . . . Parts Recycled . | . . . . . . . . . . . . . . . . Recycled Matter . | . . . . . . . . . . . . . . . . Retrieved Matter . | . . . . . . . . . . . . . . . . Retrieved Components . | . . . . . . . . . . . . . . . . Parts Scanalyzed 1 | . . . . . . . 1 . . . . . . . . Part Schematics Acquired . | . . . . . . . . . . . . . . . . Parts Damaged . | . . . . . . . . . . . . . . . . Bothacking | -11 -10 -10 -9 -9 -9 -8 -8 -7 -7 -7 -7 -6 -6 -6 -6 ------------ Run | Jun Mat Min Mat Min Exi Min Mat Fac Low Low Dat Pro Fac Ext Cet Used RIF Installer . | . . . . . . . . . . . . . . . . Robots Hacked . | . . . . . . . . . . . . . . . . Non-combat . | . . . . . . . . . . . . . . . . Combat . | . . . . . . . . . . . . . . . . Robot Hacks Applied . | . . . . . . . . . . . . . . . . Relay Couplers Released . | . . . . . . . . . . . . . . . . Fabnet Peak Effective % . | . . . . . . . . . . . . . . . . Robots Rewired 18 | . . . . . . . . . . . . . . 18 . Allies Hacked . | . . . . . . . . . . . . . . . . Hacks Repelled . | . . . . . . . . . . . . . . . . Allies | -11 -10 -10 -9 -9 -9 -8 -8 -7 -7 -7 -7 -6 -6 -6 -6 -------- Run | Jun Mat Min Mat Min Exi Min Mat Fac Low Low Dat Pro Fac Ext Cet Total Allies 28 | . . 3 . . . . . . . . . 1 . 24 . Largest Group 12 | . . 3 3 . . . . . . . . 1 . 12 8 Highest-Rated Group 389 | . . 40 40 . . . . . . . . 96 . 389 349 Highest-Rated Ally 159 | . . 16 16 . . . . . . . . 96 . 159 159 Total Orders . | . . . . . . . . . . . . . . . . Ally Attacks 205 | . . 16 4 . . . . . . . . 16 . 117 52 Total Damage 4209 | . . 191 33 . . . . . . . . 533 . 2519 933 Kills 36 | . . 4 . . . . . . . . . 4 . 23 5 Allies Corrupted . | . . . . . . . . . . . . . . . . Allies Melted . | . . . . . . . . . . . . . . . . Intel | -11 -10 -10 -9 -9 -9 -8 -8 -7 -7 -7 -7 -6 -6 -6 -6 ------- Run | Jun Mat Min Mat Min Exi Min Mat Fac Low Low Dat Pro Fac Ext Cet Robot Analysis Total 1 | . 1 . . . . . . . . . . . . . . Derelict Logs Recovered 9 | . . 1 . 3 . . . . 3 2 . . . . . Drone Launches . | . . . . . . . . . . . . . . . . Drone Recoveries . | . . . . . . . . . . . . . . . . Exploration | -11 -10 -10 -9 -9 -9 -8 -8 -7 -7 -7 -7 -6 -6 -6 -6 ------------- Run | Jun Mat Min Mat Min Exi Min Mat Fac Low Low Dat Pro Fac Ext Cet Turns Passed 16837 | . 1488 1621 1542 1143 267 464 1381 1899 1304 1489 166 1414 887 1683 89 Spaces Moved 8847 | 1 625 633 707 600 167 230 685 992 814 853 81 1077 464 896 22 Core 183 | . . . . . . . . . . . . . 183 . . Treads 4945 | . 491 633 707 600 167 230 685 763 534 . . . . 113 22 Legs 3511 | 1 134 . . . . . . 229 280 853 81 1077 186 670 . Wheels 208 | . . . . . . . . . . . . . 95 113 . Hover . | . . . . . . . . . . . . . . . . Flight . | . . . . . . . . . . . . . . . . Fastest Speed 50 | 120 120 240 160 160 160 160 152 120 126 122 122 122 50 120 160 Average Speed 154 | 120 213 240 160 160 160 178 159 143 138 150 122 122 113 132 160 Slowest Speed 650 | 120 240 240 240 160 160 240 160 260 225 200 122 122 650 260 160 Overloaded Moves . | . . . . . . . . . . . . . . . . Propulsion Burnouts . | . . . . . . . . . . . . . . . . Robots Hopped . | . . . . . . . . . . . . . . . . Cave-ins Triggered . | . . . . . . . . . . . . . . . . Exploration Rate (%) 62 | 2 89 98 64 90 55 53 63 35 94 96 69 83 12 85 14 Regions Visited 15 Branch Regions 10 Pre-discovered Areas 3 | . . 1 . . 1 . . . . . 1 . . . . Known Exits Taken 7 | . . . . . . . . 1 1 1 1 1 1 1 . Unknown Exits Taken 8 | 1 1 1 1 1 1 1 1 . . . . . . . . Scrap Searched 13 | . . 1 . 1 . 1 . . 5 4 . 1 . . . Spaces Dug 34 | . . . 2 . . . . 4 7 . . 15 5 1 . Terrain Destroyed 375 | . 49 6 21 65 . 177 . 4 7 . . 26 5 3 12 Melee 27 | . . . 2 . . . . 4 . . . 15 5 1 . Projectile 1 | . . . . . . 1 . . . . . . . . . AOE 345 | . 49 6 19 65 . 176 . . 7 . . 11 . . 12 Terrain Rammed . | . . . . . . . . . . . . . . . . Walls Destroyed . | . . . . . . . . . . . . . . . . Machines Disabled . | . . . . . . . . . . . . . . . . Actions | -11 -10 -10 -9 -9 -9 -8 -8 -7 -7 -7 -7 -6 -6 -6 -6 --------- Run | Jun Mat Min Mat Min Exi Min Mat Fac Low Low Dat Pro Fac Ext Cet Total 11030 | . 703 696 938 738 168 257 885 1369 960 1028 147 1144 719 1219 59 Wait 1098 | . 13 30 64 105 . 3 101 240 105 118 65 42 154 36 22 Move 8832 | . 624 632 706 599 166 229 684 991 813 852 80 1076 463 895 22 Hop . | . . . . . . . . . . . . . . . . Pick Up 116 | . 7 5 27 2 . 1 19 19 3 8 . . 8 17 . Fast Attach 66 | . 8 . 2 . . 1 1 5 4 5 . 1 14 25 . Attach 70 | . 1 2 9 2 . 3 12 15 3 3 . . 13 7 . Detach 8 | . . . . 1 1 . . . . 1 . . 4 1 . Swap 71 | . 2 2 6 3 . . 10 3 9 12 2 4 5 11 2 Drop 85 | . 5 . 17 . 1 . 9 17 5 8 . 1 8 14 . Fire 175 | . 36 1 39 24 . 17 . . 7 . . 3 . 35 13 Melee 398 | . 6 24 65 . . . 49 79 11 21 . 17 50 76 . Ram . | . . . . . . . . . . . . . . . . Kick 1 | . 1 . . . . . . . . . . . . . . Crush 7 | . . . 3 1 . 3 . . . . . . . . . Escape Stasis 15 | . . . . . . . . . . . . . . 15 . Rewire 88 | . . . . 1 . . . . . . . . . 87 . Trap . | . . . . . . . . . . . . . . . . Miscellaneous . | . . . . . . . . . . . . . . . . Route ------- -11/Junkyard -10/Materials (discovered 5 exits: *Mat x3 / [*Min x2]) -10/Mines (discovered 2 exits: *Mat x2) -9/Materials (discovered 4 exits: *Mat x2 / [*Min x2]) -9/Mines (discovered 3 exits: *Mat x2 / *Exi) -9/Exiles (discovered 2 exits: [*Min x2]) -8/Mines -8/Materials (discovered 2 exits: *Fac x2) -7/Factory (discovered 4 exits: *Fac x2 / *Sto / *Low) -7/Lower Caves -7/Lower Caves (discovered 2 exits: *Fac / *Dat) -7/Data Miner -6/Proximity Caves -6/Factory (discovered 4 exits: *Fac x2 / *Ext x2) -6/Extension (discovered 2 exits: *Fac / *Cet) -6/Cetus History --------- Turn | Location | Event 1 | -11/Junkyard | Discovered new exit (range 0) 1 | -11/Junkyard | Entered Materials 24 | -10/Materials | Discovered new exit (range 13) 112 | -10/Materials | Discovered new exit (range 10) 270 | -10/Materials | Discovered new exit (range 16) 317 | -10/Materials | Build established: Mutant 574 | -10/Materials | Discovered new exit (range 5) 788 | -10/Materials | Discovered new exit (range 16) 1489 | -10/Materials | Entered Mines 1506 | -10/Mines | Met a Derelict bent on vengeance 1750 | -10/Mines | Excavation squad dispatched 1750 | -10/Mines | A large section of the Mines collapsed 1903 | -10/Mines | Joined a pair of Derelicts in attacking an 0b10 outpost 1997 | -10/Mines | Learned Materials interactive machine intel 2000 | -10/Mines | Excavation squad dispatched 2039 | -10/Mines | Learned location of Storage (-7) 2237 | -10/Mines | Received a Rocket Launcher from a helpful Derelict 2250 | -10/Mines | Excavation squad dispatched 2391 | -10/Mines | Discovered new exit (range 8) 2695 | -10/Mines | Assisted by bots powering up and referring to "LRC-V3" 2742 | -10/Mines | Discovered new exit (range 4) 3110 | -10/Mines | Entered Materials 3110 | -9/Materials | Accompanied by 3 allies 3110 | -9/Materials | Evolved 2 slots: Propulsion x2 3111 | -9/Materials | Loaded intel: 18 interactive machine locations 3405 | -9/Materials | Discovered new exit (range 13) 3751 | -9/Materials | Discovered new exit (range 4) 4365 | -9/Materials | Discovered new exit (range 5) 4482 | -9/Materials | Discovered new exit (range 16) 4583 | -9/Materials | Core integrity fell below 50% 4652 | -9/Materials | Entered Mines 4653 | -9/Mines | Assembled infested the area 4658 | -9/Mines | Assisted by a Guerilla fighting off Assembled 4855 | -9/Mines | Found a damaged Exp. Sensor Array with a note attached 4858 | -9/Mines | Found Prototype Device 5165 | -9/Mines | A weapon hastily lodged in a ceiling crevice suddenly fell to the ground 5205 | -9/Mines | Discovered new exit (range 3) 5213 | -9/Mines | Learned Materials stockpile data 5272 | -9/Mines | Learned Materials stockpile data 5384 | -9/Mines | Discovered new exit (range 10) 5494 | -9/Mines | Deemed a non-threat by the Exiles lab entrance 5494 | -9/Mines | Discovered new exit (range 5) 5795 | -9/Mines | Entered Exiles 5817 | -9/Exiles | Discovered new exit (range 15) 5836 | -9/Exiles | Met 8R-AWN 5862 | -9/Exiles | Met EX-HEX 5920 | -9/Exiles | Met EX-DEC 5945 | -9/Exiles | Learned location of Zion (-6) 6049 | -9/Exiles | Discovered new exit (range 10) 6062 | -9/Exiles | Entered Mines 6459 | -8/Mines | Core integrity fell below 20% 6498 | -8/Mines | Discovered new exit (range 13) 6526 | -8/Mines | Entered Materials 6526 | -8/Materials | Evolved 2 slots: Utility x2 6546 | -8/Materials | Identified Exp. Sensor Array 6671 | -8/Materials | Hacking Suite fried by hacking feedback 7234 | -8/Materials | Discovered new exit (range 15) 7314 | -8/Materials | Lost 4 parts (1p3n) 7690 | -8/Materials | Discovered new exit (range 8) 7907 | -8/Materials | Entered Factory 7907 | -7/Factory | Evolved 2 slots: Utility x2 7908 | -7/Factory | Identified exit to Lower Caves 8423 | -7/Factory | Discovered new exit (range 8) 8434 | -7/Factory | Identified exit to Factory 9082 | -7/Factory | Lost 4 parts (3n1u) 9123 | -7/Factory | Discovered new exit (range 15) 9146 | -7/Factory | Identified exit to Storage 9405 | -7/Factory | Lost 3 parts (1n1u1w) 9597 | -7/Factory | Core integrity fell below 50% 9639 | -7/Factory | Discovered exit to Factory (range 11) 9806 | -7/Factory | Entered Lower Caves 10355 | -7/Lower Caves | Learned Factory terminal intel 10462 | -7/Lower Caves | Identified exit to Lower Caves 10692 | -7/Lower Caves | Attracted the attention of an 0b10 checkpoint 10771 | -7/Lower Caves | Learned Factory garrison access intel 10772 | -7/Lower Caves | Lost 4 parts (2n2u) 11110 | -7/Lower Caves | Entered another Lower Caves area 11204 | -7/Lower Caves | Discovered exit to Factory (range 12) 11223 | -7/Lower Caves | Learned Factory emergency access door positions 11701 | -7/Lower Caves | Acquired the password to a Derelict Tinkerer's latest research 12009 | -7/Lower Caves | Lost 3 parts (3u) 12153 | -7/Lower Caves | Caught by Unaware searching for contraband prototypes 12234 | -7/Lower Caves | Caught by Unaware searching for contraband prototypes 12444 | -7/Lower Caves | Build established: Scavenger-Mutant 12485 | -7/Lower Caves | Discovered new exit (range 13) 12499 | -7/Lower Caves | Identified exit to Data Miner 12599 | -7/Lower Caves | Entered Data Miner 12667 | -7/Data Miner | Discovered new exit (range 6) 12691 | -7/Data Miner | Met Data Miner 12711 | -7/Data Miner | Learned location of Section 7 (-2) 12711 | -7/Data Miner | Acquired the access code to Warlord's prototype stash 12731 | -7/Data Miner | Received God Mode back door access code from Data Miner 12764 | -7/Data Miner | Identified exit to Proximity Caves 12765 | -7/Data Miner | Entered Proximity Caves 12805 | -6/Proximity Caves | Escorted by Enhanced Grunt 12890 | -6/Proximity Caves | Attracted the attention of an 0b10 checkpoint 13451 | -6/Proximity Caves | Discovered exit to Factory (range 3) 13590 | -6/Proximity Caves | Spotted B-75 Beast 14179 | -6/Proximity Caves | Entered Factory 14179 | -6/Factory | Evolved 2 slots: Power x1, Propulsion x1 14180 | -6/Factory | Identified exit to Extension 14182 | -6/Factory | Loaded intel: 27 terminal locations 14183 | -6/Factory | Loaded intel: 4 garrison access locations 14203 | -6/Factory | Discovered new exit (range 4) 14236 | -6/Factory | Identified exit to Factory 14322 | -6/Factory | Discovered exit to Factory (range 12) 14435 | -6/Factory | Fabricated Adv. Melee Analysis Suite (x1) 14475 | -6/Factory | Incoming investigation squad redirected 14520 | -6/Factory | System corruption reached 10% 14616 | -6/Factory | Lost 9 parts (4n5u) 14709 | -6/Factory | Lost 4 parts (1p2n1u) 14754 | -6/Factory | Build established: Mutant 14788 | -6/Factory | Lost 3 parts (1p1n1u) 14819 | -6/Factory | Discovered exit to Extension (range 12) 15052 | -6/Factory | Spotted B-75 Beast 15066 | -6/Factory | Entered Extension 15192 | -6/Extension | Core integrity fell below 50% 15222 | -6/Extension | Lost 3 parts (2n1u) 15434 | -6/Extension | Build established: Scavenger-Mutant 15465 | -6/Extension | Rescued a captive Derelict 15465 | -6/Extension | Rescued a captive Derelict 15524 | -6/Extension | Rescued a captive Derelict 15973 | -6/Extension | Build established: Commander-Mutant 16047 | -6/Extension | Spotted B-75 Beast 16053 | -6/Extension | Spotted B-75 Beast 16054 | -6/Extension | Allies destroyed B-75 Beast 16083 | -6/Extension | Allies destroyed B-75 Beast 16245 | -6/Extension | Rescued a captive Derelict 16246 | -6/Extension | Rescued a captive Derelict 16309 | -6/Extension | Lost 4 parts (1p2n1u) 16350 | -6/Extension | Core integrity fell below 20% 16382 | -6/Extension | Lost 6 parts (1p3n2u) 16445 | -6/Extension | Lost 4 parts (1p2n1w) 16669 | -6/Extension | Build established: Scavenger-Mutant 16673 | -6/Extension | Rescued A7 16721 | -6/Extension | Discovered exit to Factory (range 10) 16723 | -6/Extension | Discovered new exit (range 6) 16745 | -6/Extension | Identified exit to Cetus 16749 | -6/Extension | Entered Cetus 16749 | -6/Cetus | Accompanied by 8 allies (A7) 16754 | -6/Cetus | Acquired a Cetus Manufacturing Module code from A7 16773 | -6/Cetus | Spotted Cetus Guard 16773 | -6/Cetus | Spotted Cetus Guard 16774 | -6/Cetus | Allies destroyed Cetus Guard 16777 | -6/Cetus | Spotted Cetus Guard 16781 | -6/Cetus | Spotted Cetus Guard 16787 | -6/Cetus | Allies destroyed Cetus Guard 16791 | -6/Cetus | Allies destroyed Cetus Guard 16810 | -6/Cetus | Destroyed Cetus Guard 16838 | -6/Cetus | Destroyed by G-67 Veteran with Field Laser Last Messages --------------- 16807_ Destroyed Carbon-fiber Leg. 16808_ AT-2OY(g) destroyed. 16808_ Slug penetrates Z3-GQF(h). 16808_ Z3-GQF(h) destroyed. 16808_ Chain reaction triggered in Corrupted Imp. Deuterium Engine. 16810_ Adv. Heat Sink melted. 16810_ Cetus Guard destroyed. 16812_ KU-9TF(g) destroyed. 16817_ System corrupted: Imp. Sensor Array fused. 16818_ A7: "I've done al##MISSION::FAILED##" 16818_ A7 destroyed. 16819_ S-27 Virus destroyed. 16822_ Chain reaction triggered in Corrupted Lgt. Nuclear Core. 16825_ HV Slug penetrates G-50 Soldier. 16825_ G-50 Soldier suffers critical hit (Destroy). 16825_ Destroyed Unknown Energy Gun. 16825_ HV Slug penetrates Wall. 16834_ HV Slug penetrates G-67 Veteran. 16835_ System corrupted: Heat flow error (+206). 16836_ HV Slug penetrates Wall. Map ----- +----------------------------------------------------+ | ?????????????????????????????????????????????? | | ?????????????????????????????????????????????? | | ?????????????????????????????????????????????? | | ?????????????????????????????????????????????? | | ?????????????????????????????????????????????? | | ?????????????????????????????????????????????? | | ?????????????????????????????????????????????? | | ?????????????????????????????????????????????? | | ?????????????????????????????????????????????? | | ?????????????????????????????????????????????? | | ?????????????????????????????????????????????? | | ????????????????????????? ???????????????????? | | ????????????????????????? #??????????????????? | | ?????????????????????????%#??????????????????? | | ????????????????????????%g#??????????????????? | | ???????????????????????g% #??????????????????? | | ???????????????????????? #??????????????????? | | ??????????????????????? ##?????????????????? | | ???????????????????????[* ;#?????????????????? | | ????????????????????###%= ;#?????????????????? | | ????????????????????# #//%#??????????????????? | | ????????????????????# !%=%##?????????????????? | | ???????????##??????? !*[%= #?????????????????? | | ?###########;;#######*!%$[ ### # #????????? | | ?# !!%= !%![%! * ????????? | | ?# @[=/%% [ %[= ????????? | | ?# *%= [%! * %=????????? | | ?###################### !###=## =%=#?????????? | | ???????????????????????###???????????????????? | | ?????????????????????????????????????????????? | | ?????????????????????????????????????????????? | | ?????????????????????????????????????????????? | | ?????????????????????????????????????????????? | | ?????????????????????????????????????????????? | | ?????????????????????????????????????????????? | | ?????????????????????????????????????????????? | | ?????????????????????????????????????????????? | | ?????????????????????????????????????????????? | | ?????????????????????????????????????????????? | | ?????????????????????????????????????????????? | | ?????????????????????????????????????????????? | | ?????????????????????????????????????????????? | | ?????????????????????????????????????????????? | | ?????????????????????????????????????????????? | | ?????????????????????????????????????????????? | | ?????????????????????????????????????????????? | | ?????????????????????????????????????????????? | | ?????????????????????????????????????????????? | | ?????????????????????????????????????????????? | | ?????????????????????????????????????????????? | +----------------------------------------------------+ Best States ------------- Heat Dissipation 61 Energy Generation 33 Energy Capacity 900 Matter Stores 300 Matter Capacity 300 Sight Range 18 Robot Scan Range 20 Terrain Scan Density 285 Armor Coverage 450 Resistance: KI 20 Propulsion Shielding 66 Melee Speed Boost 20 Phase Shifting 5 Evasion (%) 60 Melee Accuracy 15 Recoil Reduction 5 Offensive Hacking 10 Item Schematics ----------------- Huge Storage Unit | -9/Materials | Hacked Combat Drone Bay | -7/Data Miner | Free Lgt. Regenerative Plating | -7/Data Miner | Free Biomechanical Wings | -7/Data Miner | Free Imp. Lightning Gun | -7/Data Miner | Free Field Propulsion Drive | -7/Data Miner | Free Thermal Defense Suite | -7/Data Miner | Free Hvy. Insulated Plating | -7/Data Miner | Free Imp. Shock Absorption System | -7/Data Miner | Free Wave Gun | -7/Data Miner | Free Adv. Cryofiber Web | -7/Data Miner | Free Imp. Plasma Cutter | -7/Data Miner | Free Imp. Remote Datajack | -7/Data Miner | Free Robot Schematics ------------------ A-15 Conveyor | -7/Data Miner | Free M-28 Smith | -7/Data Miner | Free G-50 Soldier | -7/Data Miner | Free I-47 Archangel | -7/Data Miner | Free B-60 Warrior | -7/Data Miner | Free Fabricated ------------ Adv. Melee Analysis Suite | x1 | -6/Factory | Preloaded Alien Tech Used ----------------- None Achievements -------------- None Challenges ------------ None Game ------ Seed MultinovaDefenseDatajack Manual? 0 Play Time 01:19:07 Cumulative 373.6 hours Start 2023.10.08 @ 02:37:22 End 2023.10.08 @ 03:56:27 Sessions 1 Manual Loads 0 Difficulty Rogue Special Mode None Game No. 549 Rogue 522 Adventurer 4 Explorer 23 Win Type - Total 20 Types 14/0/2/2/1/0/0/1/0 Lore% 81 Gallery% 91 Achievement% 83 Wizard Run 0 Options --------- ASCII 0 Keyboard 1 Movement Numpad Keybinds 0 Fullscreen 1 Font 18/SmallcapsGlow Map View 76x50 Tactical HUD 1 Map Filters NONE Filters NONE Steam 1 RUN: d9934d20-d944-4b6c-a893-3d055e8ca546